bitfinex-derivatives/quotes_ETHF0:USTF0_20241026
["timestamp","ask_amount","ask_price","bid_price","bid_amount"]
[1729950926354,0.84263,2466.1,2465.9,0.40595]
[1729950926559,0.84263,2466.1,2465.7,1.3084]
[1729950927058,0.40595,2466.0,2465.8,0.40596]
[1729950928156,3.2872365,2466.1,2465.7,1.3084]
[1729950928358,3.6931665,2466.1,2465.7,1.3084]
[1729950928856,3.6931665,2466.1,2465.9,0.40595]
[1729950929848,3.6931665,2466.1,2466.0,0.4345]
[1729950930250,2.15876951,2466.1,2466.0,0.4345]
[1729950932354,0.40597,2465.8,2465.7,0.8598]
[1729950932658,1.31613951,2465.8,2465.7,1.71299]
[1729950936166,1.31613951,2465.8,2465.7,1.307]
[1729950936355,1.72210951,2465.8,2465.7,1.307]
[1729950936753,1.31613951,2465.8,2465.7,1.71299]
[1729950937761,0.40595,2466.0,2465.8,0.40596]
[1729950937961,1.31613951,2465.9,2465.8,0.40596]
[1729950938161,1.72208951,2465.9,2465.7,1.307]
[1729950938361,1.31613951,2465.8,2465.7,1.71297]
[1729950939866,1.31613951,2465.8,2465.7,1.29277]
[1729950940071,1.72603951,2465.8,2465.7,1.29277]
[1729950941276,1.72603951,2465.8,2465.1,1.59548198]
[1729950941277,7.09737902,2465.8,2465.1,1.59548198]
[1729950941472,1.31613951,2465.3,2465.2,0.40607]
[1729950943169,1.31613951,2465.3,2465.0,1.74583951]
[1729950943373,1.31613951,2465.1,2465.0,2.15193951]
[1729950943772,0.40605,2465.4,2465.3,0.40605]
[1729950943773,0.4462,2465.4,2465.3,0.40605]
[1729950943973,1.76233951,2465.4,2465.3,0.40605]
[1729950944273,1.31613951,2465.5,2465.3,5.37213951]
[1729950944473,1.31613951,2465.5,2465.4,0.40603]
[1729950944668,1.31613951,2465.5,2465.4,4.46203]
[1729950945371,1.31613951,2465.6,2465.4,4.056]
[1729950945578,1.31613951,2465.6,2465.5,0.40601]
[1729950946277,0.83819,2465.7,2465.5,0.40601]
[1729950946680,0.83819,2465.7,2465.6,0.8451]
[1729950946976,0.83819,2465.7,2465.6,0.4391]
[1729950947172,0.4322,2465.7,2465.6,0.8451]
[1729950947370,1.26417,2465.9,2465.7,0.40597]
[1729950947764,1.26417,2465.9,2465.8,0.40597]
[1729950947977,0.8582,2465.9,2465.8,0.40597]
[1729950948270,0.8582,2465.9,2465.6,0.4391]
[1729950948271,0.4462,2465.9,2465.7,0.4421]
[1729950948579,0.85216,2465.9,2465.7,0.84808]
[1729950948780,0.85216,2465.9,2465.7,0.4421]
[1729950948972,3.2078,2466.0,2465.8,4.0552]
[1729950949175,0.40592,2466.1,2465.9,0.40594]
[1729950949477,4.13215115,2466.2,2466.0,0.4087]
[1729950949678,4.53806115,2466.2,2466.0,0.81463]
[1729950949865,3.67006115,2466.2,2466.0,0.81463]
[1729950950070,0.40592,2466.1,2466.0,0.4087]
[1729950950585,3.67006115,2466.2,2466.0,0.81462]
[1729950950778,0.412,2466.2,2466.0,0.4087]
[1729950951078,0.412,2466.2,2466.1,0.40592]
[1729950951281,3.2078,2466.3,2466.2,0.4059]
[1729950951474,3.2078,2466.3,2466.2,4.4603]
[1729950952075,3.61369,2466.3,2466.2,4.0544]
[1729950952273,3.2078,2466.3,2466.2,4.4603]
[1729950952479,3.61369,2466.3,2466.2,4.4603]
[1729950952680,3.2078,2466.3,2466.2,4.4603]
[1729950953281,3.2078,2466.3,2466.2,4.0544]
[1729950953573,3.2078,2466.3,2466.2,4.4603]
[1729950953985,3.2078,2466.3,2466.2,0.4059]
[1729950954173,3.2078,2466.3,2466.2,4.0544]
[1729950954483,3.2078,2466.3,2466.2,4.4603]
[1729950954684,0.81788,2466.4,2466.2,4.4603]
[1729950954996,0.412,2466.4,2466.1,0.8497]
[1729950955182,0.81787,2466.4,2466.1,0.8497]
[1729950955378,0.81787,2466.4,2466.2,0.40589]
[1729950955880,0.81787,2466.4,2466.3,0.4172]
[1729950956081,0.81787,2466.4,2466.3,0.82309]
[1729950956384,0.81787,2466.4,2466.3,0.4172]
[1729950958279,0.81787,2466.4,2466.3,0.82309]
[1729950960881,0.81787,2466.4,2466.3,0.4172]
[1729950961279,0.81787,2466.4,2466.3,0.82309]
[1729950963579,0.81787,2466.4,2466.3,0.4172]
[1729950964287,0.81787,2466.4,2466.3,0.82309]
[1729950966083,0.40585,2466.6,2466.5,0.40585]
[1729950966290,0.82675,2466.6,2466.5,0.40585]
[1729950968293,0.82675,2466.6,2466.5,1.72177803]
[1729950968890,0.4209,2466.6,2466.5,1.72177803]
[1729950970487,0.40587,2466.5,2466.4,1.31592803]
[1729950970693,0.40587,2466.5,2466.4,1.72179803]
[1729950971390,2.14267803,2466.6,2466.4,1.72179803]
[1729950971992,0.40585,2466.5,2466.4,1.72179803]
[1729950972589,2.14267803,2466.6,2466.4,1.72179803]
[1729950973091,0.40585,2466.5,2466.4,1.72179803]
[1729950973490,2.14267803,2466.6,2466.4,1.72179803]
[1729950973992,0.4209,2466.6,2466.5,1.72177803]
[1729950974291,2.64523914,2467.0,2466.5,1.31592803]
[1729950974492,0.84679,2466.9,2466.8,1.31592803]
[1729950975380,0.84679,2466.9,2466.8,1.72172803]
[1729950975791,0.84679,2466.9,2466.8,1.31592803]
[1729950975995,1.75692803,2466.9,2466.7,1.72173803]
[1729950976191,0.4058,2466.8,2466.7,1.72173803]
[1729950976796,0.441,2466.9,2466.8,0.4058]
[1729950976990,0.4481,2467.1,2467.0,0.40577]
[1729950977189,0.4481,2467.1,2467.0,1.72169803]
[1729950977396,0.4481,2467.1,2467.0,5.77529803]
[1729950977595,0.4481,2467.1,2467.0,6.65719803]
[1729950979192,2.17492803,2467.3,2467.2,0.40574]
[1729950979502,1.2838,2467.3,2467.2,1.72166803]
[1729950979799,0.40568,2467.6,2467.2,1.31592803]
[1729950980103,4.0284,2467.7,2467.3,3.6263]
[1729950980395,4.85886,2467.7,2467.5,0.40568]
[1729950980594,4.4532,2467.7,2467.4,0.423]
[1729950980794,4.4532,2467.7,2467.0,3.6388]
[1729950980986,4.4532,2467.7,2467.1,0.40575]
[1729950980987,0.40573,2467.3,2467.1,0.40575]
[1729950981183,0.4248,2467.2,2467.1,0.40575]
[1729950981385,0.8348,2467.2,2467.1,0.40575]
[1729950981597,1.24054,2467.2,2467.0,4.04456]
[1729950981794,1.2454,2467.2,2467.1,0.40575]
[1729950982990,0.8348,2467.2,2467.1,0.82305]
[1729950988305,0.4248,2467.2,2467.1,0.82305]
[1729950988506,0.4194,2467.4,2467.3,0.40572]
[1729950988899,0.4372,2467.5,2467.4,0.40571]
[1729950989404,3.61347,2467.7,2467.4,6.90278886]
[1729950989405,3.2078,2467.7,2467.4,6.90278886]
[1729950989606,3.2078,2467.7,2467.6,0.40567]
[1729950989802,1.25443,2467.9,2467.8,0.40564]
[1729950989803,0.8488,2467.9,2467.8,0.40564]
[1729950990407,0.4297,2467.9,2467.8,0.40564]
[1729950990601,0.4297,2467.9,2467.8,3.25562886]
[1729950991306,1.24879,2468.2,2468.1,0.40559]
[1729950991606,0.40559,2468.1,2467.9,0.84191]
[1729950991806,1.24879,2468.2,2467.9,0.4363]
[1729950992006,1.24879,2468.2,2468.0,0.40561]
[1729950992608,0.4191,2468.2,2468.1,0.40559]
[1729950992812,0.40552,2468.5,2468.3,0.40556]
[1729950993020,0.40555,2468.4,2468.2,0.40557]
[1729950993305,0.40555,2468.4,2468.0,3.26448886]
[1729950993306,0.40556,2468.3,2468.0,3.26448886]
[1729950993504,0.40556,2468.3,2468.1,0.40558]
[1729950993505,0.40557,2468.3,2468.1,0.40558]
[1729950993696,0.4394,2468.2,2468.1,0.40558]
[1729950995406,0.861,2468.6,2468.0,3.26448886]
[1729950995607,0.40555,2468.4,2468.0,3.26448886]
[1729950995804,0.84104,2468.5,2468.3,0.40556]
[1729950996006,0.84103,2468.5,2468.3,0.40556]
[1729950996209,0.4355,2468.5,2468.4,3.27398886]
[1729950996418,0.40551,2468.6,2468.4,3.67951886]
[1729950996908,0.84101,2468.7,2468.5,0.40552]
[1729950997302,0.4355,2468.7,2468.6,0.40551]
[1729950998713,4.0688,2469.1,2468.5,3.6292]
[1729950998911,0.40547,2468.9,2468.6,3.25548886]
[1729950999100,0.40547,2468.9,2468.7,0.40549]
[1729950999499,0.4174,2469.0,2468.6,2.84998886]
[1729950999800,0.40547,2468.9,2468.6,2.84998886]
[1729951000012,0.40547,2468.9,2468.8,0.40548]
[1729951000214,0.4174,2469.0,2468.6,2.84998886]
[1729951000405,0.40546,2468.9,2468.7,0.40549]
[1729951001709,0.40546,2468.9,2468.6,2.84998886]
[1729951001916,0.40546,2468.9,2468.7,0.40549]
[1729951003003,0.4174,2469.0,2468.8,0.82898]
[1729951003204,0.82286,2469.0,2468.8,0.82898]
[1729951003715,0.40546,2468.9,2468.8,0.82898]
[1729951005913,0.84666,2468.9,2468.8,0.82898]
[1729951007207,0.84666,2468.9,2468.8,0.4235]
[1729951010226,0.40551,2468.6,2468.5,0.4214]
[1729951010513,0.4055,2468.7,2468.5,0.82692]
[1729951010910,0.4055,2468.7,2468.6,0.4447]
[1729951011705,0.81388,2468.8,2468.6,0.8502]
[1729951012408,0.81388,2468.8,2468.7,0.40549]
[1729951013013,0.81388,2468.8,2468.6,0.8502]
[1729951013416,0.84667,2468.9,2468.7,0.40548]
[1729951013618,0.4412,2468.9,2468.6,0.4447]
[1729951013916,0.40549,2468.7,2468.6,0.8502]
[1729951014120,0.40549,2468.7,2468.6,0.4447]
[1729951015316,0.40554,2468.5,2468.3,0.4347]
[1729951015517,0.40554,2468.5,2468.3,0.84025]
[1729951015709,1.3036,2468.6,2468.2,0.4191]
[1729951015917,1.3036,2468.6,2468.3,0.40555]
[1729951015918,0.40553,2468.5,2468.3,0.40555]
[1729951016122,0.40552,2468.5,2468.3,0.40555]
[1729951016525,0.40556,2468.3,2468.2,0.4191]
[1729951016817,1.3036,2468.6,2468.2,0.82466]
[1729951017011,0.40556,2468.3,2468.2,0.82466]
[1729951017224,1.3036,2468.6,2468.2,0.82466]
[1729951017419,0.40555,2468.4,2468.2,0.82466]
[1729951017919,0.4097,2468.3,2468.2,0.82466]
[1729951021920,0.40553,2468.5,2468.2,0.4191]
[1729951022118,0.81443,2468.5,2468.3,0.40554]
[1729951023223,0.40555,2468.4,2468.2,4.03247]
[1729951023425,0.40555,2468.4,2468.0,0.4258]
[1729951023426,0.40557,2468.2,2468.0,0.8314]
[1729951023621,1.88502,2468.6,2468.0,1.2725]
[1729951023622,0.4224,2468.1,2468.0,1.2725]
[1729951023826,0.82799,2468.1,2468.0,0.4411]
[1729951024118,0.82799,2468.1,2467.9,4.06471]
[1729951024424,0.82799,2468.1,2468.0,1.31509332]
[1729951024920,0.40561,2468.0,2467.9,0.8924]
[1729951025218,0.40561,2468.0,2467.9,0.4411]
[1729951025425,0.40561,2468.0,2467.8,1.31509332]
[1729951025615,0.40562,2468.0,2467.9,1.31509332]
[1729951026318,0.40562,2468.0,2467.7,0.40565]
[1729951026319,0.40561,2468.0,2467.7,0.40565]
[1729951026520,0.40561,2468.0,2467.8,0.4228]
[1729951026723,0.40562,2467.9,2467.8,0.4228]
[1729951027224,0.40562,2468.0,2467.8,0.82844]
[1729951028121,0.40566,2467.7,2467.6,6.93839725]
[1729951028426,0.40566,2467.7,2467.5,0.40568]
[1729951028622,1.2774,2468.1,2467.6,0.412]
[1729951028817,0.40565,2467.8,2467.6,0.81766]
[1729951029127,0.4299,2467.7,2467.6,0.412]
[1729951029324,0.40569,2467.5,2467.4,0.412]
[1729951030330,0.40571,2467.4,2467.3,3.2078]
[1729951030628,1.2842,2467.7,2467.3,3.6198]
[1729951030825,0.40568,2467.6,2467.3,3.6198]
[1729951031019,1.68987,2467.7,2467.3,6.46949725]
[1729951031220,1.68987,2467.7,2467.4,0.4293]
[1729951031423,1.68987,2467.7,2467.5,0.40568]
[1729951031625,1.2842,2467.7,2467.4,0.4293]
[1729951031927,0.40568,2467.6,2467.4,0.835]
[1729951033526,1.2842,2467.7,2467.4,0.4293]
[1729951033730,1.68987,2467.7,2467.5,0.40569]
[1729951034525,1.2842,2467.7,2467.4,0.4293]
[1729951034925,0.4299,2467.7,2467.6,0.40567]
[1729951035126,0.40565,2467.8,2467.6,0.40567]
[1729951035327,0.40565,2467.8,2467.4,0.4293]
[1729951035328,0.40565,2467.8,2467.7,0.81636]
[1729951035828,3.61344,2467.9,2467.7,0.81636]
[1729951036020,0.40564,2467.8,2467.7,0.4107]
[1729951036733,0.40564,2467.8,2467.7,0.81636]
[1729951039028,0.40564,2467.8,2467.7,0.4107]
[1729951039434,0.40564,2467.8,2467.7,0.81636]
[1729951040435,0.40564,2467.8,2467.7,0.4107]
[1729951040931,0.40564,2467.8,2467.7,0.81636]
[1729951042323,0.4513,2468.1,2467.7,0.4107]
[1729951042530,1.3063,2468.1,2467.8,0.4115]
[1729951042731,0.40562,2468.0,2467.9,0.40562]
[1729951043132,0.40561,2468.0,2467.9,0.40561]
[1729951044038,0.4513,2468.1,2467.8,1.23194]
[1729951044039,0.40562,2467.9,2467.8,1.23194]
[1729951045148,0.8669,2468.1,2467.8,0.8263]
[1729951045343,0.40561,2468.0,2467.8,1.23193]
[1729951045645,0.4056,2468.1,2468.0,0.40561]
[1729951045851,0.40559,2468.1,2468.0,0.4056]
[1729951046046,3.61339,2468.2,2468.0,0.4056]
[1729951046449,3.61339,2468.2,2468.1,0.4421]
[1729951047746,0.40559,2468.2,2468.1,0.4421]
[1729951048847,0.40559,2468.2,2468.1,0.84769]
[1729951049053,0.40559,2468.2,2468.1,0.4421]
[1729951049349,0.4416,2468.4,2468.1,4.4941]
[1729951049547,0.84715,2468.4,2468.3,0.40556]
[1729951049737,0.4416,2468.4,2468.2,0.8853]
[1729951049943,0.40556,2468.3,2468.2,0.8853]
[1729951050149,0.40556,2468.3,2468.2,1.29087]
[1729951050354,0.40556,2468.3,2468.2,0.8853]
[1729951050555,0.4416,2468.4,2468.1,0.4421]
[1729951050850,0.40561,2468.0,2467.9,3.2078]
[1729951051148,0.40561,2468.0,2467.3,3.2078]
[1729951051149,1.01404,2468.0,2467.3,3.2078]
[1729951051348,0.4057,2467.5,2467.4,0.8533]
[1729951052341,0.4057,2467.5,2467.4,0.4301]
[1729951052551,0.40571,2467.4,2467.3,3.2078]
[1729951052756,0.83981,2467.4,2467.3,3.2078]
[1729951058157,0.83981,2467.4,2467.3,3.6596]
[1729951058859,0.83981,2467.4,2467.3,0.4518]
[1729951059459,0.83981,2467.4,2467.1,0.40575]
[1729951059660,0.83981,2467.4,2467.1,0.85315]
[1729951060255,0.83981,2467.4,2467.1,0.4474]
[1729951060459,0.40572,2467.3,2467.1,0.4474]
[1729951060767,0.40572,2467.3,2467.1,0.85314]
[1729951061460,0.83981,2467.4,2467.2,0.40574]
[1729951062154,0.40573,2467.3,2467.1,0.85315]
[1729951062363,0.83982,2467.4,2467.1,0.85315]
[1729951062661,0.4057,2467.5,2467.1,0.4474]
[1729951062868,0.84568,2467.6,2467.1,0.4474]
[1729951063163,0.84568,2467.6,2467.4,0.4057]
[1729951063360,0.84568,2467.6,2467.1,0.4474]
[1729951063665,0.44,2467.6,2467.3,0.40572]
[1729951063865,0.40569,2467.5,2467.3,0.40572]
[1729951064659,0.851,2467.7,2467.1,0.4474]
[1729951064858,1.291,2467.7,2467.1,3.29709725]
[1729951065260,0.40567,2467.6,2467.4,0.40569]
[1729951065565,0.44,2467.7,2467.1,3.29709725]
[1729951065765,0.84567,2467.7,2467.5,0.40568]
[1729951065962,3.4561078,2467.9,2467.7,0.40565]
[1729951066165,0.4148,2467.9,2467.4,0.8532]
[1729951066368,0.40568,2467.6,2467.4,1.25889]
[1729951066863,0.40567,2467.7,2467.5,0.40569]
[1729951067167,0.83647,2467.7,2467.5,0.40569]
[1729951067368,0.83647,2467.7,2467.4,0.8532]
[1729951067369,0.4308,2467.7,2467.4,0.8532]
[1729951067564,0.4308,2467.7,2467.6,0.40567]
[1729951067764,0.83646,2467.7,2467.5,0.85408]
[1729951071266,0.40568,2467.6,2467.4,0.813]
[1729951071662,0.4136,2467.5,2467.4,0.813]
[1729951072271,0.4136,2467.5,2467.4,2.12843568]
[1729951079368,2.15190568,2467.7,2467.4,1.72273568]
[1729951079369,0.4308,2467.7,2467.4,1.72273568]
[1729951079581,0.83646,2467.7,2467.6,1.72110568]
[1729951079768,0.4308,2467.7,2467.6,1.72110568]
[1729951081877,3.4820078,2467.9,2467.7,0.40566]
[1729951082068,3.4820078,2467.9,2467.8,0.40564]
[1729951082265,2.6356778,2467.9,2467.8,0.40564]
[1729951082572,1.31543568,2468.1,2467.8,1.31543568]
[1729951082878,1.31543568,2468.1,2468.0,0.40561]
[1729951084273,0.4118,2468.2,2468.1,0.40559]
[1729951084475,1.72723568,2468.2,2468.1,0.40559]
[1729951085571,0.4118,2468.2,2468.1,1.72102568]
[1729951085778,1.72723568,2468.2,2468.1,1.72102568]
[1729951086476,3.4866778,2468.5,2468.1,1.31543568]
[1729951086781,3.4866778,2468.5,2468.3,1.31543568]
[1729951086782,1.72097568,2468.4,2468.3,1.31543568]
[1729951086980,1.31543568,2468.3,2468.2,2.16730568]
[1729951088377,1.25653,2468.5,2468.3,0.40556]
[1729951089181,0.851,2468.5,2468.2,0.4463]
[1729951089480,1.25654,2468.5,2468.3,0.40556]
[1729951090074,0.851,2468.5,2467.9,3.6547]
[1729951090275,6.33580626,2468.5,2468.0,0.4086]
[1729951090477,0.40557,2468.2,2468.0,0.8142]
[1729951090678,0.433,2468.1,2468.0,0.8142]
[1729951096084,1.2925,2468.1,2468.0,0.8142]
[1729951097187,1.69809,2468.1,2468.0,0.4086]
[1729951097380,1.2925,2468.1,2468.0,0.81421]
[1729951097974,1.69809,2468.1,2468.0,0.4086]
[1729951100279,1.2925,2468.1,2468.0,0.81421]
[1729951102486,1.69809,2468.1,2468.0,0.4086]
[1729951103385,1.2925,2468.1,2468.0,0.81421]
[1729951103893,1.69809,2468.1,2468.0,0.4086]
[1729951104979,1.2925,2468.1,2468.0,0.4086]
[1729951105384,1.69809,2468.1,2468.0,0.4086]
[1729951106195,1.69809,2468.1,2468.0,0.81421]
[1729951106397,1.69809,2468.1,2468.0,0.4086]
[1729951107293,0.40561,2468.0,2467.8,0.40563]
[1729951107590,1.6981,2468.1,2467.9,0.40561]
[1729951108094,1.2925,2468.1,2467.7,3.6479]
[1729951108294,2.16603356,2468.4,2468.0,1.31503356]
[1729951108494,0.4429,2468.3,2468.1,1.74983356]
[1729951108692,0.4429,2468.3,2468.2,0.40557]
[1729951109191,0.4429,2468.3,2468.2,1.72060356]
[1729951110495,0.4429,2468.3,2468.1,1.74983356]
[1729951110696,0.84846,2468.3,2468.1,2.15541356]
[1729951110896,0.4429,2468.3,2468.2,0.40557]
[1729951112089,0.4429,2468.3,2468.2,1.72060356]
[1729951113593,0.4429,2468.3,2468.0,3.2078]
[1729951113800,0.40558,2468.2,2468.0,4.92842356]
[1729951114001,2.16349356,2468.3,2468.1,0.40558]
[1729951114202,1.75793356,2468.3,2468.1,0.40558]
[1729951114400,2.16350356,2468.3,2468.1,0.40558]
[1729951115199,1.75793356,2468.3,2468.0,1.31503356]
[1729951115396,0.4465,2468.2,2468.0,1.31503356]
[1729951115601,0.4465,2468.2,2468.0,1.72063356]
[1729951115804,0.85208,2468.2,2468.0,1.72063356]
[1729951117101,0.85208,2468.2,2468.1,0.40559]
[1729951117102,0.4465,2468.2,2468.1,0.40559]
[1729951117305,1.75793356,2468.3,2468.0,1.31503356]
[1729951117501,0.40558,2468.2,2468.0,1.72063356]
[1729951119901,2.60609356,2468.3,2468.1,0.40558]
[1729951123301,2.20053356,2468.3,2468.0,1.31503356]
[1729951123606,5.24811557,2468.3,2468.1,0.40559]
[1729951123809,4.84254557,2468.3,2468.1,0.40559]
[1729951124013,5.24811557,2468.3,2468.1,0.40559]
[1729951124702,4.84254557,2468.3,2468.0,1.31503356]
[1729951124916,5.24811557,2468.3,2468.1,0.40558]
[1729951125714,5.24811557,2468.3,2468.0,1.31503356]
[1729951125715,0.40558,2468.2,2468.0,1.72063356]
[1729951126411,0.40558,2468.2,2468.1,0.40559]
[1729951127009,5.24811557,2468.3,2468.1,0.40559]
[1729951127722,2.64201201,2468.2,2468.1,0.40559]
[1729951131217,3.04759201,2468.2,2468.0,2.78161564]
[1729951131420,2.64201201,2468.2,2468.1,0.40559]
[1729951131719,3.04759201,2468.2,2468.0,1.72063356]
[1729951132212,3.04759201,2468.2,2468.1,0.40559]
[1729951132615,3.04759201,2468.2,2468.0,0.4056]
[1729951133914,3.04759201,2468.2,2468.1,0.40559]
[1729951134115,2.64201201,2468.2,2468.1,0.40559]
[1729951134416,3.04758201,2468.2,2468.1,0.40559]
[1729951134806,2.64201201,2468.2,2468.1,0.40559]
[1729951136718,2.64201201,2468.2,2468.0,0.4056]
[1729951136922,3.04760201,2468.2,2468.0,0.4056]
[1729951137516,3.04760201,2468.2,2468.1,0.40559]
[1729951138707,2.64201201,2468.2,2468.1,0.40559]
[1729951139412,3.04759201,2468.2,2468.0,0.4056]
[1729951139812,3.04759201,2468.2,2467.9,2.81112564]
[1729951140136,2.64201201,2468.2,2467.9,2.81112564]
[1729951140518,0.40562,2467.9,2467.8,1.59148812]
[1729951140718,0.40562,2467.9,2467.6,1.49959208]
[1729951140719,1.31503356,2467.9,2467.6,1.49959208]
[1729951140916,3.10230115,2467.8,2467.7,1.72069356]
[1729951142120,3.50794115,2467.8,2467.7,1.31503356]
[1729951142347,0.40566,2467.7,2467.5,3.2078]
[1729951142632,3.96412507,2467.6,2467.2,4.26879208]
[1729951142823,0.40572,2467.3,2467.2,1.75683356]
[1729951143019,1.31503356,2467.3,2467.1,1.94239208]
[1729951143333,1.31503356,2467.2,2467.1,0.4485]
[1729951143626,1.31503356,2467.2,2466.9,1.75683356]
[1729951143823,0.4271,2467.1,2467.0,1.72080356]
[1729951144123,1.31503356,2467.2,2467.1,0.40575]
[1729951144323,1.31503356,2467.2,2467.1,1.72078356]
[1729951144623,1.31503356,2467.2,2466.9,1.75683356]
[1729951144833,1.31503356,2467.1,2466.9,2.16261356]
[1729951145222,1.72079356,2467.1,2466.9,2.16261356]
[1729951145529,1.72080356,2467.0,2466.9,0.4418]
[1729951145731,0.40579,2466.9,2466.8,0.8814]
[1729951145915,1.72523356,2466.9,2466.8,0.8814]
[1729951146117,2.17533356,2466.9,2466.8,0.8814]
[1729951146424,6.22893356,2466.9,2466.6,3.2078]
[1729951146620,6.22893356,2466.9,2466.5,0.8582]
[1729951146621,1.72085356,2466.7,2466.5,0.8582]
[1729951146826,1.31503356,2466.6,2466.5,0.4486]
[1729951147219,1.72087356,2466.6,2466.5,1.76363356]
[1729951147923,4.0681,2466.9,2466.5,2.63006712]
[1729951148125,5.78892356,2466.9,2466.7,1.31503356]
[1729951148319,1.31503356,2466.8,2466.7,1.31503356]
[1729951148715,1.31503356,2466.8,2466.7,1.72085356]
[1729951149223,1.31503356,2466.8,2466.7,1.31503356]
[1729951149524,0.40581,2466.8,2466.6,0.81313]
[1729951149721,4.0681,2466.9,2466.6,0.4073]
[1729951149722,1.72085356,2466.7,2466.6,0.4073]
[1729951149922,0.40584,2466.6,2466.4,1.72089356]
[1729951150223,1.72086356,2466.7,2466.5,1.31503356]
[1729951150926,0.40584,2466.6,2466.5,1.31503356]
[1729951151128,1.72084356,2466.8,2466.5,1.72088356]
[1729951151327,1.31503356,2466.7,2466.5,1.31503356]
[1729951151530,1.72086356,2466.7,2466.5,1.31503356]
[1729951152529,0.40584,2466.6,2466.5,1.31503356]
[1729951153030,0.40584,2466.6,2466.3,0.81318]
[1729951153031,1.31503356,2466.6,2466.4,1.31503356]
[1729951153221,1.72087356,2466.6,2466.4,1.31503356]
[1729951153425,0.40589,2466.3,2466.1,3.2078]
[1729951153724,1.31503356,2466.4,2466.2,1.72093356]
[1729951153929,1.31503356,2466.4,2466.3,0.443]
[1729951154426,1.72090356,2466.4,2466.3,0.443]
[1729951155027,2.14330356,2466.4,2466.3,0.443]
[1729951155423,1.73743356,2466.4,2465.7,4.22275]
[1729951155627,1.31503356,2466.2,2466.0,1.31503356]
[1729951155831,1.31503356,2466.2,2466.1,2.16395356]
[1729951156022,1.31503356,2466.2,2466.1,1.75803356]
[1729951156740,1.72093356,2466.2,2466.1,1.75803356]
[1729951156924,1.31503356,2466.2,2466.1,1.75803356]
[1729951157131,1.72093356,2466.2,2466.1,1.75803356]
[1729951157328,1.31503356,2466.2,2466.1,1.75803356]
[1729951157922,1.31503356,2466.2,2466.1,0.443]
[1729951158224,1.31503356,2466.2,2466.1,0.8888]
[1729951158623,0.4077,2466.5,2466.1,6.25903356]
[1729951158828,3.2078,2466.6,2466.1,6.25903356]
[1729951158829,1.72087356,2466.6,2466.4,1.72090356]
[1729951159029,1.31503356,2466.6,2466.5,0.866]
[1729951159434,1.31503356,2466.6,2466.5,1.27185]
[1729951161031,1.31503356,2466.6,2466.1,0.4458]
[1729951161334,1.31503356,2466.4,2466.3,0.40589]
[1729951161529,0.83115,2466.6,2466.5,0.40585]
[1729951161738,2.14618356,2466.6,2466.5,0.40585]
[1729951161932,14.58781682,2468.1,2466.3,1.31503356]
[1729951162127,3.2078,2467.0,2466.6,1.31503356]
[1729951162327,1.72083356,2466.8,2466.7,1.24622]
[1729951162539,1.31503356,2466.8,2466.7,1.24622]
[1729951162839,1.72083356,2466.8,2466.7,1.24622]
[1729951163037,1.72083356,2466.8,2466.5,0.40585]
[1729951163038,0.40584,2466.6,2466.5,0.40585]
[1729951163228,1.72087356,2466.6,2466.5,0.40585]
[1729951163632,0.40585,2466.5,2466.4,0.84137]
[1729951163929,1.72088356,2466.6,2466.4,0.84137]
[1729951164243,1.72087356,2466.6,2466.4,0.84137]
[1729951164429,1.31503356,2466.6,2466.4,0.4355]
[1729951164739,1.72088356,2466.6,2466.4,0.4355]
[1729951164936,1.31503356,2466.6,2466.4,0.4355]
[1729951165231,1.72088356,2466.6,2466.4,0.4355]
[1729951165632,0.40585,2466.5,2466.4,0.4355]
[1729951166136,1.72088356,2466.6,2466.4,0.4355]
[1729951166335,0.40585,2466.6,2466.4,0.4355]
[1729951166531,0.4485,2466.8,2466.3,3.2078]
[1729951166740,0.40587,2466.4,2466.2,0.8471]
[1729951167642,0.4132,2466.5,2466.2,0.4356]
[1729951167643,0.40589,2466.3,2466.2,0.4356]
[1729951172941,0.85318,2466.4,2466.2,0.8415]
[1729951173431,0.40589,2466.3,2466.2,0.4356]
[1729951178946,0.40592,2466.1,2465.9,0.4278]
[1729951179140,3.70796931,2466.4,2466.0,0.4243]
[1729951179335,2.85116931,2466.4,2466.0,0.4243]
[1729951179535,0.4059,2466.3,2466.1,0.40591]
[1729951179833,0.4059,2466.3,2466.2,0.4263]
[1729951180439,0.40592,2466.1,2465.9,0.4278]
[1729951180648,0.40592,2466.1,2465.9,0.83374]
[1729951181349,0.4218,2466.2,2466.1,0.40592]
[1729951181545,0.4218,2466.2,2465.9,0.4278]
[1729951181747,0.8277,2466.2,2466.0,0.40592]
[1729951181951,0.4218,2466.2,2466.1,0.40592]
[1729951182548,0.4218,2466.2,2465.9,0.4278]
[1729951182549,3.25704931,2466.4,2466.2,0.4059]
[1729951182739,3.67883931,2466.4,2466.3,0.41]
[1729951185049,0.4218,2466.4,2466.3,0.81589]
[1729951185251,1.24746,2466.5,2466.3,0.81589]
[1729951185252,0.40586,2466.5,2466.4,0.40587]
[1729951185555,0.40585,2466.5,2466.4,1.25587]
[1729951186856,1.67685,2466.6,2466.5,0.40585]
[1729951187451,0.82585,2466.6,2466.5,0.40585]
[1729951188353,2.14162989,2466.6,2466.5,0.40585]
[1729951189250,0.40585,2466.5,2466.4,1.25585]
[1729951189552,1.72162989,2466.5,2466.4,1.25585]
[1729951190049,0.40587,2466.4,2466.3,0.81588]
[1729951190257,1.72164989,2466.4,2466.3,0.81588]
[1729951190556,1.72164989,2466.4,2466.3,4.87028]
[1729951191255,1.72164989,2466.4,2466.3,0.81588]
[1729951191556,1.72164989,2466.4,2466.3,4.87028]
[1729951192157,1.31577989,2466.4,2466.3,4.87028]
[1729951193950,1.31577989,2466.4,2466.3,4.4644]
[1729951194154,1.72164989,2466.4,2466.3,0.41]
[1729951194555,3.46080393,2466.6,2466.4,0.40586]